fUST/lending_fUST_20250828
["ID","MTS","AMOUNT","RATE_DAILY","PERIOD"]
[381676665,1756311048886,-1455.39,0.00022191,2]
[381676667,1756311048895,-480.0,0.00022191,2]
[381676669,1756311048905,-3599.34,0.00022191,2]
[381676671,1756311048914,-480.0,0.00022191,2]
[381676672,1756311048924,-480.0,0.00022191,2]
[381676673,1756311048933,-480.0,0.00022191,2]
[381676674,1756311048944,-401.20508584,0.00022191,2]
[381676675,1756311048953,-480.0,0.00022191,2]
[381676676,1756311048964,-480.0,0.00022191,2]
[381676677,1756311048975,-480.0,0.00022191,2]
[381676678,1756311048984,-480.0,0.00022191,2]
[381676679,1756311048994,-480.0,0.00022191,2]
[381676681,1756311049005,-3055.07,0.00022191,2]
[381676683,1756311049014,-480.0,0.00022191,2]
[381676684,1756311049024,-480.0,0.00022191,2]
[381676686,1756311049033,-1278.67,0.00022191,2]
[381676688,1756311049042,-480.0,0.00022191,2]
[381676691,1756311049052,-480.0,0.00022191,2]
[381676693,1756311049062,-480.0,0.00022191,2]
[381676694,1756311049072,-430.07049116,0.00022191,2]
[381676697,1756311049081,-480.0,0.00022191,2]
[381676699,1756311049091,-480.0,0.00022191,2]
[381676701,1756311049102,-480.0,0.00022191,2]
[381676703,1756311049112,-1308.72,0.00022191,2]
[381676705,1756311049123,-852.44,0.00022191,2]
[381676707,1756311049132,-740.49,0.00022191,2]
[381676709,1756311049142,-480.0,0.00022191,2]
[381676711,1756311049152,-480.0,0.00022191,2]
[381676713,1756311049162,-974.49,0.00022191,2]
[381676715,1756311049172,-480.0,0.00022191,2]
[381676717,1756311049182,-480.0,0.00022191,2]
[381676719,1756311049193,-480.0,0.00022191,2]
[381676721,1756311049203,-480.0,0.00022191,2]
[381676723,1756311049215,-480.0,0.00022191,2]
[381676725,1756311049224,-480.0,0.00022191,2]
[381676727,1756311049234,-480.0,0.00022191,2]
[381676729,1756311049243,-480.0,0.00022191,2]
[381676731,1756311049253,-1560.6,0.00022191,2]
[381676733,1756311049263,-480.0,0.00022191,2]
[381676735,1756311049272,-2599.19,0.00022191,2]
[381676737,1756311049282,-1478.77,0.00022191,2]
[381676739,1756311049292,-480.0,0.00022191,2]
[381676741,1756311049301,-480.0,0.00022191,2]
[381676743,1756311049310,-480.0,0.00022191,2]
[381676745,1756311049320,-480.0,0.00022191,2]
[381676747,1756311049330,-480.0,0.00022191,2]
[381676749,1756311049339,-480.0,0.00022191,2]
[381676751,1756311049349,-1379.12,0.00022191,2]
[381676753,1756311049358,-480.0,0.00022191,2]
[381676755,1756311049368,-483.31,0.00022191,2]
[381676757,1756311049377,-480.0,0.00022191,2]
[381676759,1756311049386,-480.0,0.00022191,2]
[381676761,1756311049396,-547.09,0.00022191,2]
[381676763,1756311049406,-480.0,0.00022191,2]
[381676766,1756311049416,-480.0,0.00022191,2]
[381676768,1756311049429,-480.0,0.00022191,2]
[381676770,1756311049439,-480.0,0.00022191,2]
[381676772,1756311049448,-480.0,0.00022191,2]
[381676774,1756311049458,-3694.92,0.00022191,2]
[381676776,1756311049468,-658.85,0.00022191,2]
[381676778,1756311049477,-480.0,0.00022191,2]
[381676780,1756311049486,-1461.49,0.00022191,2]
[381676782,1756311049496,-942.77,0.00022191,2]
[381676784,1756311049505,-480.0,0.00022191,2]
[381676786,1756311049515,-480.0,0.00022191,2]
[381676788,1756311049526,-480.0,0.00022191,2]
[381676790,1756311049536,-480.0,0.00022191,2]
[381676792,1756311049547,-480.0,0.00022191,2]
[381676794,1756311049556,-480.0,0.00022191,2]
[381676796,1756311049566,-480.0,0.00022191,2]
[381676798,1756311049575,-949.66,0.00022191,2]
[381676800,1756311049585,-4692.63,0.00022191,2]
[381676802,1756311049594,-480.0,0.00022191,2]
[381676804,1756311049604,-1042.33,0.00022191,2]
[381676806,1756311049613,-480.0,0.00022191,2]
[381676809,1756311049624,-480.0,0.00022191,2]
[381676811,1756311049635,-926.77,0.00022191,2]
[381676813,1756311049644,-480.0,0.00022191,2]
[381676815,1756311049654,-480.0,0.00022191,2]
[381676816,1756311049663,-480.0,0.00022191,2]
[381676819,1756311049672,-480.0,0.00022191,2]
[381676821,1756311049681,-480.0,0.00022191,2]
[381676823,1756311049691,-526.48,0.00022191,2]
[381676825,1756311049700,-551.36,0.00022191,2]
[381676827,1756311049711,-625.06,0.00022191,2]
[381676829,1756311049720,-480.0,0.00022191,2]
[381676831,1756311049730,-1221.32,0.00022191,2]
[381676833,1756311049739,-727.62,0.00022191,2]
[381676835,1756311049748,-480.0,0.00022191,2]
[381676837,1756311049758,-480.0,0.00022191,2]
[381676839,1756311049768,-480.0,0.00022191,2]
[381676841,1756311049777,-480.0,0.00022191,2]
[381676843,1756311049786,-480.0,0.00022191,2]
[381676845,1756311049796,-480.0,0.00022191,2]
[381676847,1756311049805,-480.0,0.00022191,2]
[381676849,1756311049816,-480.0,0.00022191,2]
[381676851,1756311049826,-480.0,0.00022191,2]
[381676853,1756311049835,-480.0,0.00022191,2]
[381676855,1756311049844,-1046.19,0.00022191,2]
[381676857,1756311049854,-490.89,0.00022191,2]
[381676859,1756311049863,-2667.99,0.00022191,2]
[381676861,1756311049872,-480.0,0.00022191,2]
[381676863,1756311049881,-4177.22,0.00022191,2]
[381676865,1756311049890,-3762.56,0.00022191,2]
[381676867,1756311049900,-480.0,0.00022191,2]
[381676869,1756311049909,-842.38,0.00022191,2]
[381676871,1756311049919,-2156.61,0.00022191,2]
[381676873,1756311049928,-512.7,0.00022191,2]
[381676875,1756311049937,-480.0,0.00022191,2]
[381676877,1756311049948,-480.0,0.00022191,2]
[381676879,1756311049959,-1424.9,0.00022191,2]
[381676881,1756311049968,-480.0,0.00022191,2]
[381676884,1756311049978,-507.96,0.00022191,2]
[381676886,1756311049988,-480.0,0.00022191,2]
[381676888,1756311049998,-480.0,0.00022191,2]
[381676890,1756311050008,-816.21,0.00022191,2]
[381676892,1756311050018,-480.0,0.00022191,2]
[381676894,1756311050027,-480.0,0.00022191,2]
[381676896,1756311050037,-3615.73,0.00022191,2]
[381676898,1756311050046,-480.0,0.00022191,2]
[381676900,1756311050055,-480.0,0.00022191,2]
[381676902,1756311050064,-713.44,0.00022191,2]
[381676904,1756311050074,-480.0,0.00022191,2]
[381676906,1756311050083,-480.0,0.00022191,2]
[381676908,1756311050092,-619.45,0.00022191,2]
[381676910,1756311050102,-997.05,0.00022191,2]
[381676912,1756311050114,-531.75,0.00022191,2]
[381676914,1756311050124,-2083.2,0.00022191,2]
[381676916,1756311050134,-480.0,0.00022191,2]
[381676918,1756311050143,-1088.15,0.00022191,2]
[381676920,1756311050153,-1106.43,0.00022191,2]
[381676922,1756311050162,-681.4,0.00022191,2]
[381676924,1756311050172,-480.0,0.00022191,2]
[381676926,1756311050181,-606.09,0.00022191,2]
[381676928,1756311050192,-480.0,0.00022191,2]
[381676930,1756311050202,-596.76,0.00022191,2]
[381676932,1756311050213,-480.0,0.00022191,2]
[381676934,1756311050222,-480.0,0.00022191,2]
[381676936,1756311050232,-420.0,0.00022191,2]
[381676938,1756311050242,-480.0,0.00022191,2]
[381676940,1756311050251,-480.0,0.00022191,2]
[381676942,1756311050261,-622.23,0.00022191,2]
[381676944,1756311050271,-480.0,0.00022191,2]
[381676946,1756311050281,-480.0,0.00022191,2]
[381676948,1756311050291,-1124.975755,0.000222,2]
[381676950,1756311050300,-229.44675075,0.00022377,8]
[381676952,1756311050311,-24680.68669879,0.000224,7]
[381677092,1756311051607,-500.0,0.00020807,2]
[381677094,1756311051616,-153.45499922,0.00020807,2]
[381677096,1756311051626,-480.0,0.00021917,2]
[381677098,1756311051635,-480.0,0.00021917,2]
[381677100,1756311051644,-480.0,0.00021917,2]
[381677102,1756311051653,-480.0,0.00021917,2]
[381677104,1756311051662,-1205.24,0.00021917,2]
[381677106,1756311051671,-620.04,0.00021917,2]
[381677108,1756311051680,-480.0,0.00021917,2]
[381677110,1756311051690,-515.28,0.00021917,2]
[381677112,1756311051699,-480.0,0.00021917,2]
[381677114,1756311051709,-480.0,0.00022191,2]
[381677116,1756311051718,-368.07,0.00022191,2]
[381677118,1756311051727,-480.0,0.00022191,2]
[381677120,1756311051736,-1205.24,0.00022191,2]
[381677122,1756311051745,-480.0,0.00022191,2]
[381677123,1756311051755,-30530.20330121,0.000224,7]
[381677125,1756311051763,-425.44119842,0.000224,7]
[381677127,1756311051773,-417.15472785,0.000224,7]
[381677129,1756311051782,-160.0,0.000224,7]
[381677131,1756311051791,-1000.0,0.00022421,2]
[381677133,1756311051802,-1000.0,0.00022421,2]
[381677135,1756311051811,-426.40554061,0.00022465,2]
[381677137,1756311051820,-480.0,0.00022465,2]
[381677139,1756311051830,-380.4173895,0.00022465,2]
[381677141,1756311051839,-480.0,0.00022465,2]
[381677143,1756311051848,-480.0,0.00022465,2]
[381677145,1756311051858,-480.0,0.00022465,2]
[381677147,1756311051867,-480.0,0.00022465,2]
[381677149,1756311051876,-480.0,0.00022465,2]
[381677151,1756311051885,-615.70405028,0.00022465,2]
[381677153,1756311051895,-480.0,0.00022465,2]
[381677155,1756311051904,-480.0,0.00022465,2]
[381677157,1756311051914,-480.0,0.00022465,2]
[381677159,1756311051923,-480.0,0.00022465,2]
[381677161,1756311051932,-480.0,0.00022465,2]
[381677163,1756311051941,-480.0,0.00022465,2]
[381677165,1756311051951,-480.0,0.00022465,2]
[381677167,1756311051960,-615.52450224,0.00022465,2]
[381677169,1756311051969,-480.0,0.00022465,2]
[381677171,1756311051979,-480.0,0.00022465,2]
[381677173,1756311051989,-722.8,0.00022465,2]
[381677176,1756311051999,-480.0,0.00022465,2]
[381677178,1756311052008,-678.46,0.00022465,2]
[381677180,1756311052018,-480.0,0.00022465,2]
[381677182,1756311052027,-556.25,0.00022465,2]
[381677184,1756311052036,-1765.97389098,0.00022465,2]
[381677186,1756311052045,-480.0,0.00022465,2]
[381677188,1756311052055,-480.0,0.00022465,2]
[381677190,1756311052064,-480.0,0.00022465,2]
[381677192,1756311052074,-480.0,0.00022465,2]
[381677194,1756311052083,-480.0,0.00022465,2]
[381677196,1756311052092,-480.0,0.00022465,2]
[381677198,1756311052102,-480.0,0.00022465,2]
[381677200,1756311052111,-480.0,0.00022465,2]
[381677202,1756311052124,-480.0,0.00022465,2]
[381677204,1756311052134,-182.03035522,0.00022465,2]
[381677206,1756311052143,-480.0,0.00022465,2]
[381677208,1756311052152,-480.0,0.00022465,2]
[381677210,1756311052163,-480.0,0.00022465,2]
[381677212,1756311052172,-480.0,0.00022465,2]
[381677214,1756311052181,-480.0,0.00022465,2]
[381677216,1756311052191,-1062.05,0.00022465,2]
[381677218,1756311052199,-480.0,0.00022465,2]
[381677220,1756311052211,-480.0,0.00022465,2]
[381677222,1756311052220,-480.0,0.00022465,2]
[381677224,1756311052229,-480.0,0.00022465,2]
[381677226,1756311052238,-590.36,0.00022465,2]
[381677228,1756311052248,-480.0,0.00022465,2]
[381677230,1756311052257,-578.77,0.00022465,2]
[381677232,1756311052267,-480.0,0.00022465,2]
[381677234,1756311052276,-480.0,0.00022465,2]
[381677236,1756311052285,-480.0,0.00022465,2]
[381677238,1756311052294,-294.4361867,0.00022465,2]
[381677240,1756311052304,-1836.12,0.00022465,2]
[381677242,1756311052313,-480.0,0.00022465,2]
[381677244,1756311052322,-1071.07,0.00022465,2]
[381677246,1756311052331,-198.79190786,0.00022465,2]
[381677248,1756311052340,-480.0,0.00022465,2]
[381677250,1756311052353,-582.17,0.00022465,2]
[381677252,1756311052362,-576.95,0.00022465,2]
[381677254,1756311052371,-480.0,0.00022465,2]
[381677256,1756311052380,-480.0,0.00022465,2]
[381677258,1756311052390,-480.0,0.00022465,2]
[381677260,1756311052399,-765.75,0.00022465,2]
[381677262,1756311052408,-480.0,0.00022465,2]
[381677264,1756311052418,-480.0,0.00022465,2]
[381677266,1756311052427,-480.0,0.00022465,2]
[381677268,1756311052436,-480.0,0.00022465,2]
[381677270,1756311052446,-480.0,0.00022465,2]
[381677272,1756311052455,-614.39,0.00022465,2]
[381677274,1756311052465,-480.0,0.00022465,2]
[381677276,1756311052474,-480.0,0.00022465,2]
[381677278,1756311052483,-480.0,0.00022465,2]
[381677280,1756311052493,-480.0,0.00022465,2]
[381677282,1756311052502,-1104.25,0.00022465,2]
[381677284,1756311052511,-480.0,0.00022465,2]
[381677286,1756311052521,-480.0,0.00022465,2]
[381677288,1756311052530,-480.0,0.00022465,2]
[381677290,1756311052539,-480.0,0.00022465,2]
[381677292,1756311052549,-480.0,0.00022465,2]
[381677294,1756311052559,-480.0,0.00022465,2]
[381677296,1756311052568,-480.0,0.00022465,2]
[381677298,1756311052577,-480.0,0.00022465,2]
[381677300,1756311052587,-480.0,0.00022465,2]
[381677302,1756311052596,-480.0,0.00022465,2]
[381677304,1756311052606,-480.0,0.00022465,2]
[381677306,1756311052615,-480.0,0.00022465,2]
[381677308,1756311052624,-480.0,0.00022465,2]
[381677310,1756311052633,-480.0,0.00022465,2]
[381677312,1756311052643,-480.0,0.00022465,2]
[381677314,1756311052652,-480.0,0.00022465,2]
[381677316,1756311052661,-480.0,0.00022465,2]
[381677318,1756311052670,-583.15855222,0.00022465,2]
[381677320,1756311052679,-480.0,0.00022465,2]
[381677322,1756311052688,-480.0,0.00022465,2]
[381677324,1756311052697,-480.0,0.00022465,2]
[381677326,1756311052707,-480.0,0.00022465,2]
[381677328,1756311052716,-290.64,0.00022465,2]
[381677330,1756311052725,-480.0,0.00022465,2]
[381677332,1756311052734,-480.0,0.00022465,2]
[381677334,1756311052743,-480.0,0.00022465,2]
[381677336,1756311052753,-480.0,0.00022465,2]
[381677338,1756311052762,-480.0,0.00022465,2]
[381677340,1756311052772,-480.0,0.00022465,2]
[381677342,1756311052781,-480.0,0.00022465,2]
[381677344,1756311052790,-480.0,0.00022465,2]
[381677346,1756311052800,-480.0,0.00022465,2]
[381677348,1756311052810,-685.9,0.00022465,2]
[381677350,1756311052820,-480.0,0.00022465,2]
[381677352,1756311052830,-495.66,0.00022465,2]
[381677354,1756311052840,-480.0,0.00022465,2]
[381677356,1756311052851,-480.0,0.00022465,2]
[381677358,1756311052860,-480.0,0.00022465,2]
[381677360,1756311052870,-480.0,0.00022465,2]
[381677362,1756311052880,-480.0,0.00022465,2]
[381677364,1756311052890,-480.0,0.00022465,2]
[381677366,1756311052900,-480.0,0.00022465,2]
[381677368,1756311052910,-480.0,0.00022465,2]
[381677370,1756311052920,-510.78,0.00022465,2]
[381677373,1756311052930,-735.88,0.00022465,2]
[381677375,1756311052940,-480.0,0.00022465,2]
[381677376,1756311052950,-755.7955157,0.00022465,2]
[381677379,1756311052960,-480.0,0.00022465,2]
[381677381,1756311052970,-633.35,0.00022465,2]
[381677383,1756311052980,-480.0,0.00022465,2]
[381677385,1756311052990,-480.0,0.00022465,2]
[381677387,1756311052999,-1061.55,0.00022465,2]
[381677389,1756311053009,-691.52,0.00022465,2]
[381677390,1756311053019,-480.0,0.00022465,2]
[381677391,1756311053029,-480.0,0.00022465,2]
[381677392,1756311053038,-480.0,0.00022465,2]
[381677393,1756311053048,-722.25,0.00022465,2]
[381677394,1756311053058,-480.0,0.00022465,2]
[381677395,1756311053067,-480.0,0.00022465,2]
[381677396,1756311053077,-480.0,0.00022465,2]
[381677397,1756311053087,-1162.32,0.00022465,2]
[381677398,1756311053096,-480.0,0.00022465,2]
[381677399,1756311053106,-480.0,0.00022465,2]
[381677400,1756311053119,-480.0,0.00022465,2]
[381677401,1756311053128,-673.7,0.00022465,2]
[381677403,1756311053138,-480.0,0.00022465,2]
[381677405,1756311053148,-480.0,0.00022465,2]
[381677407,1756311053159,-501.34,0.00022465,2]
[381677409,1756311053168,-480.0,0.00022465,2]
[381677411,1756311053178,-480.0,0.00022465,2]
[381677413,1756311053187,-480.0,0.00022465,2]
[381677415,1756311053199,-480.0,0.00022465,2]
[381677417,1756311053209,-480.0,0.00022465,2]
[381677419,1756311053219,-503.48,0.00022465,2]
[381677421,1756311053229,-480.0,0.00022465,2]
[381677423,1756311053239,-480.0,0.00022465,2]
[381677425,1756311053248,-826.69,0.00022465,2]
[381677427,1756311053258,-480.0,0.00022465,2]
[381677429,1756311053268,-480.0,0.00022465,2]
[381677431,1756311053278,-480.0,0.00022465,2]
[381677433,1756311053287,-480.0,0.00022465,2]
[381677435,1756311053297,-572.02,0.00022465,2]
[381677437,1756311053307,-480.0,0.00022465,2]
[381677439,1756311053316,-480.0,0.00022465,2]
[381677441,1756311053326,-480.0,0.00022465,2]
[381677443,1756311053336,-480.0,0.00022465,2]
[381677445,1756311053346,-480.0,0.00022465,2]
[381677447,1756311053356,-480.0,0.00022465,2]
[381677449,1756311053365,-480.0,0.00022465,2]
[381677451,1756311053375,-480.0,0.00022465,2]
[381677453,1756311053385,-645.12,0.00022465,2]
[381677455,1756311053394,-480.0,0.00022465,2]
[381677457,1756311053404,-480.0,0.00022465,2]
[381677459,1756311053414,-480.0,0.00022465,2]
[381677461,1756311053424,-480.0,0.00022465,2]
[381677463,1756311053434,-480.0,0.00022465,2]
[381677465,1756311053445,-519.02,0.00022465,2]
[381677467,1756311053455,-778.68,0.00022465,2]
[381677469,1756311053465,-480.0,0.00022465,2]
[381677471,1756311053475,-480.0,0.00022465,2]
[381677473,1756311053485,-541.9,0.00022465,2]
[381677475,1756311053495,-539.76,0.00022465,2]
[381677477,1756311053506,-480.0,0.00022465,2]
[381677479,1756311053516,-480.0,0.00022465,2]
[381677481,1756311053527,-480.0,0.00022465,2]
[381677483,1756311053536,-480.0,0.00022465,2]
[381677485,1756311053546,-500.0,0.00022465,2]
[381677487,1756311053556,-480.0,0.00022465,2]
[381677489,1756311053565,-485.83,0.00022465,2]
[381677491,1756311053575,-561.14,0.00022465,2]
[381677493,1756311053584,-480.0,0.00022465,2]
[381677495,1756311053594,-480.0,0.00022465,2]
[381677497,1756311053604,-480.0,0.00022465,2]
[381677499,1756311053614,-480.0,0.00022465,2]
[381677501,1756311053624,-480.0,0.00022465,2]
[381677503,1756311053634,-480.0,0.00022465,2]
[381677505,1756311053644,-500.0,0.00022465,2]
[381677507,1756311053654,-480.0,0.00022465,2]
[381677509,1756311053664,-251.13491911,0.00022465,2]
[381677511,1756311053674,-480.0,0.00022465,2]
[381677513,1756311053684,-480.0,0.00022465,2]
[381677515,1756311053693,-480.0,0.00022465,2]
[381677517,1756311053703,-901.83,0.00022465,2]
[381677519,1756311053714,-480.0,0.00022465,2]
[381677521,1756311053724,-480.0,0.00022465,2]
[381677523,1756311053734,-480.0,0.00022465,2]
[381677525,1756311053744,-988.11,0.00022465,2]
[381677527,1756311053754,-480.0,0.00022465,2]
[381677529,1756311053764,-480.0,0.00022465,2]
[381677531,1756311053774,-178.23093286,0.00022465,2]
[381677533,1756311053784,-151.0,0.00022465,7]
[381677535,1756311053794,-557.16,0.00022465,2]
[381677537,1756311053804,-480.0,0.00022465,2]
[381677540,1756311053814,-480.0,0.00022465,2]
[381677542,1756311053824,-825.51,0.00022465,2]
[381677544,1756311053834,-480.0,0.00022465,2]
[381677546,1756311053844,-480.0,0.00022465,2]
[381677548,1756311053853,-532.16,0.00022465,2]
[381677550,1756311053863,-480.0,0.00022465,2]
[381677552,1756311053872,-480.0,0.00022465,2]
[381677554,1756311053882,-480.0,0.00022465,2]
[381677556,1756311053891,-480.0,0.00022465,2]
[381677558,1756311053902,-513.9,0.00022465,2]
[381677560,1756311053911,-480.0,0.00022465,2]
[381677562,1756311053920,-480.0,0.00022465,2]
[381677564,1756311053930,-501.49786935,0.00022465,2]
[381677566,1756311053939,-480.0,0.00022465,2]
[381677568,1756311053949,-604.67,0.00022465,2]
[381677570,1756311053959,-480.0,0.00022465,2]
[381677572,1756311053970,-1024.0,0.00022465,2]
[381677574,1756311053980,-480.0,0.00022465,2]
[381677576,1756311053989,-3404.38,0.00022465,2]
[381677578,1756311053998,-480.0,0.00022465,2]
[381677580,1756311054008,-480.0,0.00022465,2]
[381677582,1756311054017,-480.0,0.00022465,2]
[381677584,1756311054026,-480.0,0.00022465,2]
[381677586,1756311054036,-480.0,0.00022465,2]
[381677588,1756311054045,-480.0,0.00022465,2]
[381677590,1756311054055,-480.0,0.00022465,2]
[381677592,1756311054064,-480.0,0.00022465,2]
[381677594,1756311054073,-480.0,0.00022465,2]
[381677596,1756311054083,-324.34212447,0.00022465,2]
[381677598,1756311054092,-611.02,0.00022465,2]
[381677600,1756311054104,-480.0,0.00022465,2]
[381677602,1756311054115,-1202.1,0.00022465,2]
[381677604,1756311054126,-575.2,0.00022465,2]
[381677606,1756311054135,-941.66,0.00022465,2]
[381677608,1756311054144,-1247.3,0.00022465,2]
[381677610,1756311054154,-480.0,0.00022465,2]
[381677612,1756311054166,-480.0,0.00022465,2]
[381677614,1756311054176,-480.0,0.00022465,2]
[381677615,1756311054185,-480.0,0.00022465,2]
[381677617,1756311054196,-480.0,0.00022465,2]
[381677620,1756311054206,-480.0,0.00022465,2]
[381677621,1756311054216,-701.46,0.00022465,2]
[381677623,1756311054225,-480.0,0.00022465,2]
[381677625,1756311054235,-552.41,0.00022465,2]
[381677628,1756311054245,-379.77178288,0.00022465,2]
[381677630,1756311054255,-480.0,0.00022465,2]
[381677632,1756311054265,-480.0,0.00022465,2]
[381677634,1756311054274,-1455.39,0.00022465,2]
[381677636,1756311054284,-480.0,0.00022465,2]
[381677638,1756311054294,-3599.34,0.00022465,2]
[381677640,1756311054303,-480.0,0.00022465,2]
[381677642,1756311054313,-480.0,0.00022465,2]
[381677644,1756311054323,-480.0,0.00022465,2]
[381677646,1756311054333,-480.0,0.00022465,2]
[381677648,1756311054343,-480.0,0.00022465,2]
[381677650,1756311054352,-480.0,0.00022465,2]
[381677652,1756311054362,-480.0,0.00022465,2]
[381677654,1756311054375,-3055.07,0.00022465,2]
[381677656,1756311054385,-480.0,0.00022465,2]
[381677658,1756311054395,-480.0,0.00022465,2]
[381677660,1756311054405,-1278.67,0.00022465,2]
[381677662,1756311054416,-480.0,0.00022465,2]
[381677664,1756311054426,-480.0,0.00022465,2]
[381677666,1756311054436,-480.0,0.00022465,2]
[381677668,1756311054446,-480.0,0.00022465,2]
[381677670,1756311054456,-480.0,0.00022465,2]
[381677672,1756311054467,-480.0,0.00022465,2]
[381677674,1756311054477,-852.44,0.00022465,2]
[381677676,1756311054487,-1308.72,0.00022465,2]
[381677678,1756311054497,-740.49,0.00022465,2]
[381677680,1756311054507,-480.0,0.00022465,2]
[381677682,1756311054516,-974.49,0.00022465,2]
[381677684,1756311054526,-480.0,0.00022465,2]
[381677686,1756311054537,-480.0,0.00022465,2]
[381677688,1756311054547,-480.0,0.00022465,2]
[381677690,1756311054557,-480.0,0.00022465,2]
[381677692,1756311054567,-480.0,0.00022465,2]
[381677694,1756311054577,-372.80016097,0.00022465,2]
[381677696,1756311054587,-558.49,0.00022465,2]
[381677698,1756311054596,-1560.6,0.00022465,2]
[381677700,1756311054606,-480.0,0.00022465,2]
[381677703,1756311054616,-2599.19,0.00022465,2]
[381677705,1756311054627,-1478.77,0.00022465,2]
[381677707,1756311054637,-480.0,0.00022465,2]
[381677709,1756311054646,-480.0,0.00022465,2]
[381677711,1756311054656,-480.0,0.00022465,2]
[381677713,1756311054666,-480.0,0.00022465,2]
[381677715,1756311054675,-480.0,0.00022465,2]
[381677717,1756311054685,-480.0,0.00022465,2]
[381677719,1756311054695,-1379.12,0.00022465,2]
[381677721,1756311054705,-480.0,0.00022465,2]
[381677723,1756311054717,-483.31,0.00022465,2]
[381677725,1756311054727,-403.60220934,0.00022465,2]
[381677727,1756311054737,-547.09,0.00022465,2]
[381677729,1756311054747,-480.0,0.00022465,2]
[381677731,1756311054756,-480.0,0.00022465,2]
[381677733,1756311054767,-480.0,0.00022465,2]
[381677735,1756311054777,-480.0,0.00022465,2]
[381677737,1756311054787,-3694.92,0.00022465,2]
[381677739,1756311054797,-658.85,0.00022465,2]
[381677741,1756311054807,-1461.49,0.00022465,2]
[381677743,1756311054817,-942.77,0.00022465,2]
[381677745,1756311054827,-480.0,0.00022465,2]
[381677747,1756311054837,-480.0,0.00022465,2]
[381677750,1756311054848,-480.0,0.00022465,2]
[381677752,1756311054858,-480.0,0.00022465,2]
[381677754,1756311054868,-480.0,0.00022465,2]
[381677756,1756311054878,-480.0,0.00022465,2]
[381677758,1756311054888,-480.0,0.00022465,2]
[381677760,1756311054898,-949.66,0.00022465,2]
[381677762,1756311054908,-4692.63,0.00022465,2]
[381677764,1756311054918,-480.0,0.00022465,2]
[381677766,1756311054929,-1042.33,0.00022465,2]
[381677768,1756311054938,-480.0,0.00022465,2]
[381677770,1756311054949,-926.77,0.00022465,2]
[381677772,1756311054959,-480.0,0.00022465,2]
[381677774,1756311054971,-480.0,0.00022465,2]
[381677776,1756311054980,-480.0,0.00022465,2]
[381677778,1756311054990,-289.62023927,0.00022465,2]
[381677780,1756311055000,-480.0,0.00022465,2]
[381677782,1756311055010,-551.36,0.00022465,2]
[381677784,1756311055020,-526.48,0.00022465,2]
[381677786,1756311055030,-625.06,0.00022465,2]
[381677788,1756311055040,-480.0,0.00022465,2]